bitfinex/quotes_ETHUSD_20241022
["timestamp","ask_amount","ask_price","bid_price","bid_amount"]
[1729584101412,1.3143762,2645.7,2645.6,3.77986]
[1729584101927,1.3143762,2645.8,2645.7,3.77962]
[1729584102126,0.7565,2646.2,2645.7,3.77962]
[1729584102327,1.3143762,2645.9,2645.8,3.77957]
[1729584103034,3.1966762,2645.9,2645.8,3.77957]
[1729584104631,3.1966762,2645.9,2645.8,5.9189462]
[1729584104632,1.8823,2645.9,2645.8,5.9189462]
[1729584104803,1.8823,2645.9,2645.8,4.60457]
[1729584108996,0.774,2645.8,2645.4,3.9079942]
[1729584109197,1.3143762,2645.6,2645.4,3.9079942]
[1729584109415,1.3143762,2645.5,2645.4,3.9079942]
[1729584109718,0.774,2645.8,2645.5,3.78]
[1729584109922,1.3143762,2645.6,2645.4,3.9079042]
[1729584110123,1.3143762,2645.5,2645.4,3.9079042]
[1729584110348,1.3143762,2645.6,2645.4,3.9079042]
[1729584110552,1.3143762,2645.5,2645.4,3.9079042]
[1729584111052,1.3143762,2645.7,2645.6,3.77983]
[1729584111255,1.3143762,2645.7,2645.5,3.77999]
[1729584111657,1.3143762,2645.7,2645.6,0.0441685]
[1729584115859,3.02582002,2645.7,2645.6,0.0441685]
[1729584116066,1.71144382,2645.7,2645.4,0.1278842]
[1729584116360,1.3143762,2645.5,2645.4,0.1278842]
[1729584116526,1.3143762,2645.5,2645.4,3.9080242]
[1729584116721,1.3143762,2645.5,2645.4,0.1278842]
[1729584117153,1.3143762,2645.5,2645.4,3.9080242]
[1729584117664,1.3143762,2645.5,2645.4,0.1278842]
[1729584119351,1.3143762,2645.5,2645.4,3.9080242]
[1729584120161,1.3143762,2645.5,2645.4,0.1278842]
[1729584122564,8.8597762,2645.5,2645.4,0.1278842]
[1729584122767,9.9188982,2645.5,2645.4,0.1278842]
[1729584123280,8.604522,2645.5,2645.4,0.1278842]
[1729584123566,9.9188982,2645.5,2645.4,0.1278842]
[1729584123868,9.9188982,2645.5,2645.4,0.1724059]
[1729584124224,9.9188982,2645.5,2645.4,0.1278842]
[1729584124471,9.9188982,2645.5,2645.4,0.1724059]
[1729584125347,6.1388982,2645.5,2645.4,0.1724059]
[1729584125553,3.1388982,2645.5,2645.4,0.1724059]
[1729584126479,8.55156225,2645.5,2645.4,0.1724059]
[1729584126647,8.55156225,2645.5,2645.4,0.1278842]
[1729584126835,8.55156225,2645.5,2645.4,0.17286012]
[1729584128352,8.55156225,2645.5,2645.4,0.1278842]
[1729584129239,8.55156225,2645.5,2645.4,0.17286012]
[1729584129467,8.55156225,2645.5,2645.4,0.1278842]
[1729584132458,14.4986025,2645.5,2645.4,0.1278842]
[1729584132661,15.0586025,2645.5,2645.4,0.1278842]
[1729584132993,12.11156225,2645.5,2645.4,0.1278842]
[1729584133157,11.56156225,2645.5,2645.4,0.1278842]
[1729584134094,11.55156225,2645.5,2645.4,0.1278842]
[1729584135191,11.55156225,2645.5,2645.4,0.17177317]
[1729584135388,14.4986025,2645.5,2645.4,0.1278842]
[1729584135551,11.55156225,2645.5,2645.4,0.1278842]
[1729584136289,12.11156225,2645.5,2645.4,0.1278842]
[1729584137144,15.0586025,2645.5,2645.4,0.1278842]
[1729584137988,12.11156225,2645.5,2645.4,0.1278842]
[1729584138890,15.0586025,2645.5,2645.4,0.1278842]
[1729584139243,12.11156225,2645.5,2645.4,0.1278842]
[1729584140278,15.0586025,2645.5,2645.4,0.1278842]
[1729584141185,12.11156225,2645.5,2645.4,0.1278842]
[1729584143487,9.164522,2645.5,2645.4,0.1278842]
[1729584143792,11.56156225,2645.5,2645.4,0.1278842]
[1729584144151,11.56156225,2645.5,2645.4,0.17198194]
[1729584144462,2.94704025,2645.5,2645.4,0.1278842]
[1729584144982,6.72704025,2645.5,2645.4,0.17212932]
[1729584145497,2.94704025,2645.5,2645.4,0.17212932]
[1729584146378,1.3188516,2645.5,2645.4,0.17212932]
[1729584149469,5.0988516,2645.5,2645.4,0.17212932]
[1729584149804,1.3188516,2645.5,2645.4,0.17212932]
[1729584149991,6.88640892,2645.5,2645.4,0.17212932]
[1729584150372,6.88640892,2645.5,2645.4,0.1278842]
[1729584152311,8.51484529,2645.5,2645.4,0.1278842]
[1729584152483,8.51484529,2645.5,2645.4,0.1720065]
[1729584153370,8.51484529,2645.5,2645.4,0.1278842]
[1729584155531,11.51484529,2645.5,2645.4,0.1278842]
[1729584157380,8.56755732,2645.5,2645.4,0.1278842]
[1729584157718,11.51484529,2645.5,2645.4,0.17186529]
[1729584158106,11.51484529,2645.5,2645.4,0.1278842]
[1729584159010,8.56755732,2645.5,2645.4,0.1278842]
[1729584159328,11.51484529,2645.5,2645.4,0.1278842]
[1729584160324,10.74704529,2645.5,2645.4,0.1278842]
[1729584160699,10.74704529,2645.5,2645.4,0.17187143]
[1729584161218,10.74704529,2645.5,2645.4,0.1278842]
[1729584164824,10.74704529,2645.5,2645.4,0.17186529]
[1729584165523,11.56784529,2645.5,2645.4,0.17186529]
[1729584165924,11.56784529,2645.5,2645.4,0.1278842]
[1729584171944,12.12784529,2645.5,2645.4,0.1278842]
[1729584172107,15.07513326,2645.5,2645.4,0.1278842]
[1729584172308,7.60506,2644.9,2644.8,0.01888104]
[1729584172630,7.60506,2644.9,2644.1,3.78193]
[1729584172631,3.78129,2644.6,2644.2,0.7928]
[1729584173032,3.78129,2644.6,2644.3,0.04424558]
[1729584173278,6.72885797,2644.4,2644.3,0.04424558]
[1729584173410,3.78186,2644.2,2644.1,0.7928]
[1729584173606,6.72914797,2644.2,2644.1,0.7928]
[1729584173842,6.72914797,2644.2,2644.1,0.04429816]
[1729584174207,3.78205,2644.1,2643.8,0.7928]
[1729584174435,2.94728797,2644.0,2643.8,0.7928]
[1729584175411,3.0,2644.6,2643.8,3.78243]
[1729584175707,3.0,2644.6,2644.2,4.58715]
[1729584176109,2.94728797,2644.8,2644.2,4.58715]
[1729584176447,3.78092,2644.9,2644.4,0.8053]
[1729584176742,6.72807797,2645.0,2644.4,0.8053]
[1729584177137,6.72807797,2645.0,2644.4,4.58686]
[1729584177338,6.72807797,2645.0,2643.8,3.78238]
[1729584177339,0.7533,2644.5,2643.7,0.8053]
[1729584177549,2.94728797,2644.3,2643.8,3.78239]
[1729584177705,2.94728797,2644.3,2644.0,0.8053]
[1729584177909,6.72880797,2644.5,2644.0,0.8053]
[1729584178164,3.7816,2644.4,2644.0,0.8053]
[1729584178453,6.72901797,2644.3,2644.0,0.8053]
[1729584178820,10.51083797,2644.3,2643.7,0.8053]
[1729584179019,10.51083797,2644.3,2643.7,4.58786]
[1729584179418,4.5297208,2644.5,2643.9,3.78227]
[1729584179622,4.5297208,2644.5,2643.5,3.92944252]
[1729584179623,3.78136,2644.6,2644.1,3.78191]
[1729584180015,3.78136,2644.6,2644.0,0.8053]
[1729584180016,6.72874797,2644.5,2644.0,0.8053]
[1729584181212,10.51030797,2644.5,2644.0,0.8053]
[1729584181547,2.94728797,2644.1,2643.8,4.53868]
[1729584181733,10.51035797,2644.5,2643.8,4.53868]
[1729584181937,7.85516377,2644.5,2643.9,3.78216]
[1729584182246,11.63671377,2644.5,2644.0,3.78211]
[1729584182448,2.94728797,2644.3,2644.0,3.78211]
[1729584184147,2.94728797,2644.6,2644.0,3.78211]
[1729584184445,6.72857797,2644.6,2644.0,3.78211]
[1729584184662,1.1263108,2644.5,2644.0,7.56413]
[1729584185215,1.1263108,2644.5,2644.0,3.78202]
[1729584185420,1.1263108,2644.5,2644.1,3.782]
[1729584185833,1.1263108,2644.5,2644.0,3.78202]
[1729584186221,1.1263108,2644.5,2644.0,7.56408]
[1729584186422,1.1263108,2644.5,2644.0,3.78202]
[1729584186645,1.1263108,2644.5,2644.1,0.0456066]
[1729584187243,10.48704797,2644.9,2644.4,3.7815]
[1729584187760,9.72824797,2644.9,2644.5,0.0454953]
[1729584187922,6.72824797,2644.9,2644.5,0.0454953]
[1729584188119,0.7775,2645.1,2644.5,0.0454953]
[1729584188324,2.94728797,2645.2,2644.7,3.78106]
[1729584188520,1.1304429,2645.1,2644.8,0.04541645]
[1729584188720,0.01888104,2645.3,2645.0,3.78062]
[1729584189058,7.74713529,2645.5,2645.1,0.04517784]
[1729584189356,1.01975732,2645.5,2645.1,3.82566784]
[1729584189662,1.8923,2645.9,2645.1,3.82566784]
[1729584189663,5.66183,2645.9,2645.4,0.7959]
[1729584189956,1.8823,2645.9,2645.5,0.04488844]
[1729584190168,8.60910797,2645.9,2645.5,0.04488844]
[1729584190371,2.94728797,2645.7,2645.5,0.04488844]
[1729584190520,3.80820477,2645.7,2645.5,0.04488844]
[1729584190722,3.80820477,2645.7,2645.3,3.78026]
[1729584190961,3.80820477,2645.7,2645.4,0.04463217]
[1729584191466,2.94728797,2645.5,2645.4,0.04463217]
[1729584191829,2.94728797,2645.5,2645.2,0.7959]
[1729584192030,3.70609545,2645.5,2645.4,0.04461988]
[1729584192230,3.70609545,2645.5,2645.2,0.7959]
[1729584192231,7.48618545,2645.5,2645.3,0.04464615]
[1729584192540,7.48618545,2645.5,2645.4,0.04461988]
[1729584192858,3.70609545,2645.5,2645.0,0.815]
[1729584193052,7.48617545,2645.5,2645.4,0.04461988]
[1729584193271,3.7803,2645.3,2644.7,7.56211]
[1729584193461,3.7803,2645.3,2644.8,3.7809]
[1729584193462,2.94728797,2645.2,2644.8,3.7809]
[1729584194640,2.94728797,2645.2,2644.6,4.53795]
[1729584194841,2.94728797,2645.0,2644.6,4.53798]
[1729584195455,6.72801797,2645.0,2644.6,0.7567]
[1729584195812,2.94728797,2644.8,2644.3,0.7567]
[1729584195931,6.72829797,2644.8,2644.3,0.7567]
[1729584196471,2.94728797,2644.6,2644.3,0.7567]
[1729584196673,2.94728797,2644.6,2644.0,4.60865]
[1729584196674,6.72865797,2644.6,2644.0,4.60865]
[1729584197036,2.94728797,2644.6,2644.0,4.60865]
[1729584197242,0.7535948,2644.5,2644.0,8.39072]
[1729584197939,0.7535948,2644.5,2644.0,4.60865]
[1729584198141,6.72889797,2644.4,2643.9,0.01888104]
[1729584198369,6.72889797,2644.4,2643.8,3.78234]
[1729584198956,2.94728797,2644.2,2643.7,0.8218]
[1729584199152,7.40203777,2644.2,2643.7,0.8218]
[1729584199378,7.40203777,2644.2,2643.7,4.60436]
[1729584200247,3.62017777,2644.2,2643.7,4.60436]
[1729584201566,3.62017777,2644.2,2643.8,0.04492368]
[1729584201892,3.62017777,2644.2,2643.7,4.60436]
[1729584201893,4.39437777,2644.2,2643.7,4.60436]
[1729584202063,4.39437777,2644.2,2643.9,0.04489738]
[1729584202262,0.81761878,2644.1,2643.8,0.04492368]
[1729584202486,0.81761878,2644.1,2644.0,0.04487109]
[1729584202664,0.81761878,2644.1,2643.9,0.04489738]
[1729584202984,3.62017777,2644.2,2644.0,0.04487109]
[1729584203343,3.62017777,2644.2,2643.8,7.56466]
[1729584203501,0.6728898,2644.2,2644.1,0.04484479]
[1729584203954,0.6728898,2644.2,2643.8,7.56466]
[1729584204158,6.72865797,2644.6,2643.9,3.82717738]
[1729584204465,2.94728797,2644.6,2644.1,3.78199]
[1729584204650,2.94728797,2644.6,2644.0,3.78214]
[1729584204651,2.94728797,2644.6,2644.2,3.78183]
[1729584204854,2.94728797,2644.6,2644.2,3.8266485]
[1729584205054,0.3721488,2644.5,2644.2,3.8266485]
[1729584205666,0.3721488,2644.5,2644.2,0.0448185]
[1729584205992,0.3721488,2644.5,2644.1,3.78186]
[1729584206191,0.3721488,2644.5,2644.3,0.04479221]
[1729584206394,0.3721488,2644.5,2644.2,0.0448185]
[1729584206695,0.3721488,2644.5,2644.3,0.8177]
[1729584206855,0.3721488,2644.5,2644.3,0.86249221]
[1729584207063,0.3721488,2644.5,2644.3,0.04479221]
[1729584207468,0.3721488,2644.5,2644.1,0.8177]
[1729584207783,0.3721488,2644.5,2644.2,3.78183]
[1729584207985,6.78117,2644.7,2644.2,3.8266485]
[1729584208190,3.0,2644.7,2644.2,7.6084185]
[1729584208700,3.0,2644.7,2644.2,3.8265885]
[1729584208901,4.41822998,2644.7,2644.3,3.78171]
[1729584209088,4.41822998,2644.7,2644.2,0.0448185]
[1729584209399,4.41822998,2644.7,2644.3,0.04489051]
[1729584209623,4.41822998,2644.7,2644.3,3.7817]
[1729584209902,4.41822998,2644.7,2644.4,0.04486422]
[1729584210408,4.41822998,2644.7,2644.2,3.78177]
[1729584210582,4.41822998,2644.7,2644.5,0.04483794]
[1729584210766,1.1146618,2644.6,2644.3,3.7817]
[1729584210967,4.06194977,2644.6,2644.1,4.59959]
[1729584211202,4.06194977,2644.6,2644.2,3.78181]
[1729584211712,1.1146618,2644.6,2644.1,4.59959]
[1729584212001,7.84324977,2644.6,2644.1,4.59959]
[1729584212216,1.08432498,2644.5,2644.1,4.59959]
[1729584212570,3.78159,2644.4,2644.1,0.8177]
[1729584212800,3.78159,2644.4,2643.8,0.7501]
[1729584212801,3.78188,2644.2,2643.8,0.7501]
[1729584213805,4.8329558,2644.2,2643.8,0.7501]
[1729584216810,4.8329558,2644.2,2643.9,0.04499568]
[1729584219207,1.0510758,2644.2,2643.9,0.04499568]
[1729584219571,4.8329458,2644.2,2643.9,0.04499568]
[1729584220313,1.0510758,2644.2,2643.9,0.04499568]
[1729584221171,6.72893797,2644.4,2643.9,3.82725568]
[1729584222005,4.4536918,2644.9,2643.9,3.82725568]
[1729584222006,0.8206,2645.1,2644.0,0.86424332]
[1729584222235,0.8206,2645.1,2644.5,3.78129]
[1729584222434,2.94728797,2645.0,2644.5,3.78129]
[1729584222655,0.3767888,2644.9,2644.6,0.04557963]
[1729584223148,2.94728797,2644.8,2644.6,0.04557963]
[1729584223328,0.7967,2644.7,2644.1,4.57023]
[1729584223521,2.94728797,2644.6,2644.1,4.57023]
[1729584224432,0.7967,2644.7,2644.1,4.57022]
[1729584224626,0.7525058,2644.6,2644.1,4.57022]
[1729584224823,0.7525058,2644.6,2644.3,3.7817]
[1729584225029,0.7525058,2644.6,2644.2,3.78176]
[1729584225762,0.7525058,2644.6,2644.1,4.57022]
[1729584226127,0.7525058,2644.6,2644.2,3.78182]
[1729584226559,0.7525058,2644.6,2644.1,4.57022]
[1729584226765,0.7525058,2644.6,2644.1,8.35214]
[1729584226959,0.7525058,2644.6,2644.1,4.57022]
[1729584226960,4.5338158,2644.6,2644.1,4.57022]
[1729584227153,4.31454558,2644.5,2644.0,7.56426]
[1729584227470,4.31454558,2644.5,2644.0,3.78213]
[1729584227643,3.78157,2644.4,2643.9,0.7598]
[1729584227842,0.8287,2644.2,2643.9,3.78221]
[1729584228852,4.61062,2644.2,2643.7,3.78256]
[1729584229158,0.8287,2644.2,2643.7,3.7825]
[1729584229303,0.8287,2644.2,2643.5,0.8113]
[1729584229506,0.8287,2644.2,2643.7,3.78248]
[1729584229748,0.8287,2644.2,2643.8,3.7824]
[1729584230247,1.9626468,2644.2,2643.6,3.78272]
[1729584230402,4.61058,2644.2,2643.6,3.78272]
[1729584230607,4.61058,2644.2,2643.7,3.78256]
[1729584231307,4.61058,2644.2,2643.7,3.78257]
[1729584231608,4.61058,2644.2,2643.8,0.04565476]
[1729584232102,4.61058,2644.2,2643.7,3.78257]
[1729584232303,4.61058,2644.2,2643.9,0.04562847]
[1729584232505,4.61058,2644.2,2643.8,0.04565476]
[1729584232506,4.90994077,2644.2,2643.8,0.04565476]
[1729584232743,4.90994077,2644.2,2644.0,0.04560217]
[1729584232941,1.9626528,2644.2,2643.9,0.04559773]
[1729584233244,1.9626528,2644.2,2644.0,0.04557144]
[1729584233444,5.7445228,2644.2,2644.0,0.04557144]
[1729584233658,0.95262928,2644.1,2643.6,7.56524]
[1729584233951,4.61057,2644.2,2644.1,0.04554514]
[1729584234150,3.78213,2644.1,2643.6,3.78262]
[1729584234850,3.78209,2644.1,2643.6,3.78262]
[1729584237449,7.56418,2644.1,2643.6,3.78262]
[1729584237613,1.1340168,2644.0,2643.5,0.8113]
[1729584237805,4.9161968,2644.0,2643.5,0.8113]
[1729584238005,4.9161968,2644.0,2643.3,0.01888104]
[1729584238006,3.78245,2643.8,2643.3,0.01888104]
[1729584238210,3.78245,2643.8,2643.1,3.78334]
[1729584238211,0.8085,2643.7,2643.1,3.78334]
[1729584238524,2.94728797,2643.8,2642.8,0.1278842]
[1729584238525,0.8085,2643.2,2642.8,0.1278842]
[1729584238708,4.59188,2643.2,2642.8,0.1278842]
[1729584239260,2.94728797,2643.1,2642.8,0.1278842]
[1729584239612,9.73100797,2642.9,2642.8,0.1278842]
[1729584239946,10.78394877,2642.9,2642.8,0.1278842]
[1729584240506,11.60884877,2642.9,2642.8,0.1278842]
[1729584240712,13.49114877,2642.9,2642.8,0.1278842]
[1729584241319,10.5438608,2642.9,2642.8,0.1278842]
[1729584241519,13.49114877,2642.9,2642.8,0.1278842]
[1729584241957,9.70742877,2642.9,2642.8,0.1278842]
[1729584242259,13.49114877,2642.9,2642.8,0.17321479]
[1729584242666,6.7601408,2642.9,2642.8,0.1278842]
[1729584242816,6.7601408,2642.9,2642.8,0.17322094]
[1729584243021,3.7601408,2642.9,2642.8,0.17322094]
[1729584243334,1.8823,2642.9,2642.8,0.17322094]
[1729584243924,5.66602,2642.9,2642.8,0.17322094]
[1729584244432,9.48772,2642.9,2642.8,0.1278842]
[1729584244646,12.43500797,2642.9,2642.8,0.1278842]
[1729584245844,12.98500797,2642.9,2642.8,0.1278842]
[1729584246034,14.66386977,2642.9,2642.8,0.1278842]
[1729584246459,14.66386977,2642.9,2642.1,0.01888104]
[1729584246460,10.06844977,2642.9,2642.1,0.01888104]
[1729584246660,7.48430797,2642.2,2642.0,0.00265042]
[1729584246886,6.78486,2642.1,2642.0,0.00265042]
[1729584247182,7.53716,2642.1,2642.0,0.00265042]
[1729584247393,9.25980559,2642.1,2642.0,0.00265042]
[1729584247852,0.7523,2641.3,2640.8,3.7867]
[1729584248178,2.94728797,2641.2,2640.5,0.7793]
[1729584248478,3.69958797,2640.8,2640.4,3.78719]
[1729584248777,0.7523,2641.1,2640.6,3.78693]
[1729584248988,3.78573,2641.5,2640.8,3.78664]
[1729584248989,0.7523,2641.4,2640.8,3.78664]
[1729584249137,0.7523,2641.4,2640.7,3.78674]
[1729584249337,0.7523,2641.4,2640.9,3.78648]
[1729584249538,0.7523,2641.4,2641.0,3.78643]
[1729584250361,3.0,2641.6,2641.2,3.78614]
[1729584250535,3.74718797,2641.7,2641.2,3.78614]
[1729584251136,3.74718797,2641.7,2641.1,3.78629]
[1729584251341,3.74718797,2641.7,2641.0,3.78643]
[1729584251764,3.74718797,2641.7,2641.0,3.78634]
[1729584252155,3.74718797,2641.7,2641.1,3.78623]
[1729584252579,3.74718797,2641.7,2641.2,3.78614]
[1729584252952,2.94728797,2641.5,2641.0,3.78634]
[1729584253485,2.94728797,2641.5,2641.0,7.57268]
[1729584253647,2.94728797,2641.5,2641.1,3.78621]
[1729584254053,3.74718797,2641.7,2641.2,3.78609]
[1729584254672,0.7714,2642.0,2641.5,3.78559]
[1729584254971,3.81339104,2642.4,2641.3,0.766]
[1729584254972,0.7714,2642.3,2641.9,3.78514]
[1729584255167,3.71868797,2642.3,2641.9,3.78514]
[1729584255454,1.1451569,2642.3,2641.7,3.78532]
[1729584255651,1.1451569,2642.3,2641.8,3.78528]
[1729584255856,1.1451569,2642.3,2641.8,3.78525]
[1729584256175,4.1451569,2642.3,2641.8,3.78525]
[1729584256379,4.1451569,2642.3,2641.9,3.78506]
[1729584256380,1.1451569,2642.3,2641.9,3.78506]
[1729584256566,0.7714,2642.3,2642.0,3.78499]
[1729584256892,0.01888104,2642.4,2642.0,3.78499]
[1729584257186,3.0,2642.5,2642.0,3.78499]
[1729584257356,3.0,2642.5,2641.9,3.78506]
[1729584257357,0.7774,2642.6,2642.1,3.78477]
[1729584257559,1.8823,2642.9,2642.3,3.78444]
[1729584257560,2.6594,2642.9,2642.3,3.78444]
[1729584257796,0.644303,2642.8,2642.3,3.78444]
[1729584258090,4.428173,2642.8,2642.1,3.78477]
[1729584258267,4.428173,2642.8,2642.2,3.78469]
[1729584258463,4.428173,2642.8,2642.2,3.82387736]
[1729584258696,0.644303,2642.8,2642.3,3.78457]
[1729584258894,0.7087423,2642.7,2642.3,3.78457]
[1729584259058,0.7087423,2642.7,2642.4,0.0391347]
[1729584260272,0.7087423,2642.7,2642.4,3.8235547]
[1729584260697,3.0,2642.8,2642.5,3.78426]
[1729584261203,3.0,2642.8,2642.6,0.03895915]
[1729584261512,3.0,2642.8,2642.3,3.78457]
[1729584261513,6.78387,2642.8,2642.3,3.78457]
[1729584261686,6.78387,2642.8,2642.7,0.03893283]
[1729584261886,0.8254,2642.3,2641.7,4.55093]
[1729584262198,0.8254,2642.3,2641.8,0.0391698]
[1729584262388,0.8254,2642.3,2641.7,4.55093]
[1729584262588,0.8254,2642.3,2641.8,0.0391698]
[1729584262788,0.8254,2642.3,2641.9,3.78514]
[1729584263019,0.8254,2642.3,2642.0,0.03911712]
[1729584263314,4.99254,2642.3,2642.0,0.03911712]
[1729584263673,4.99254,2642.3,2641.6,7.58987104]
[1729584263976,4.99254,2642.3,2641.6,7.57099]
[1729584264190,3.0,2642.2,2641.7,0.03935586]
[1729584264389,3.0,2642.2,2641.7,3.82473586]
[1729584264588,3.0,2642.2,2641.8,3.78528]
[1729584264786,1.20794,2642.3,2641.9,0.03930318]
[1729584264995,0.79925,2642.2,2641.9,0.03930318]
[1729584266297,1.20794,2642.3,2641.9,0.03930318]
[1729584267176,4.99255,2642.3,2641.9,0.03930318]
[1729584268676,1.20794,2642.3,2641.9,0.03930318]
[1729584268914,3.8204,2642.6,2642.1,3.78483]
[1729584269319,3.0,2642.4,2642.2,0.03922418]
[1729584269680,3.0,2642.4,2642.0,3.785]
[1729584270011,3.0,2642.4,2642.3,0.03919785]
[1729584270312,3.760474,2642.4,2642.3,0.03919785]
[1729584270513,7.544924,2642.4,2641.9,0.8027]
[1729584270675,3.760474,2642.4,2642.3,0.03919785]
[1729584270875,3.78467,2642.3,2641.7,0.7621]
[1729584271405,3.7848,2642.2,2641.7,0.7621]
[1729584271611,4.53937,2642.1,2641.6,3.78544]
[1729584273221,0.7545,2642.1,2641.7,3.78542]
[1729584273879,0.8329944,2642.2,2641.8,3.78527]
[1729584274715,3.0,2642.4,2641.9,8.36447]
[1729584275225,3.0,2642.4,2641.9,8.3645]
[1729584275519,3.0,2642.4,2641.9,4.57943]
[1729584275885,0.8069,2642.6,2641.9,3.74168797]
[1729584276084,1.83180899,2642.8,2642.3,3.78457]
[1729584276318,1.2088599,2642.7,2642.3,3.78457]
[1729584276710,1.2088599,2642.7,2642.4,0.03941732]
[1729584278004,1.2088599,2642.7,2642.4,0.83381732]
[1729584278216,3.0,2642.8,2642.4,0.83381732]
[1729584278519,6.47297,2642.9,2642.4,4.61817732]
[1729584278520,5.66607,2642.9,2642.4,4.61817732]
[1729584278880,5.66607,2642.9,2642.4,4.61822732]
[1729584279622,5.66607,2642.9,2642.4,0.83381732]
[1729584280114,10.475579,2642.9,2642.4,0.83381732]
[1729584280324,6.691719,2642.9,2642.4,0.83381732]
[1729584280484,10.475549,2642.9,2642.4,0.03941732]
[1729584280682,6.691719,2642.9,2642.4,0.03941732]
[1729584280885,0.6691719,2642.8,2642.4,0.03941732]
[1729584281124,4.4531119,2642.8,2642.4,0.03941732]
[1729584282421,3.78402,2642.7,2642.4,0.03941732]
[1729584282596,3.78402,2642.7,2642.2,0.7828]
[1729584282785,3.78402,2642.7,2642.3,0.03929005]
[1729584282987,3.78402,2642.7,2642.2,4.56751]
[1729584283223,3.78402,2642.7,2642.3,0.03929005]
[1729584283383,0.6691719,2642.8,2642.3,3.7845]
[1729584283591,0.6691719,2642.8,2642.4,0.03926372]
[1729584284730,4.4530619,2642.8,2642.4,0.03926372]
[1729584285028,1.8823,2642.9,2642.4,0.03926372]
[1729584285228,1.8823,2642.9,2642.6,3.78414]
[1729584285380,1.8823,2642.9,2642.7,0.03918475]
[1729584285586,1.8823,2642.9,2642.7,3.82309475]
[1729584285785,1.8823,2642.9,2642.8,3.78386]
[1729584286088,1.8823,2642.9,2642.8,0.0389618]
[1729584286292,2.448877,2642.9,2642.8,0.0389618]
[1729584286517,2.448877,2642.9,2642.7,0.8208]
[1729584286714,1.8823,2642.9,2642.8,0.03886965]
[1729584287094,1.8823,2642.9,2642.7,4.60478]
[1729584287415,1.8823,2642.9,2642.8,0.03886965]
[1729584287618,1.8823,2642.9,2642.7,4.60478]
[1729584287619,1.8823,2642.9,2642.7,0.8208]
[1729584287924,1.8823,2642.9,2642.8,0.03886965]
[1729584288288,1.8823,2642.9,2642.7,0.8208]
[1729584288490,1.8823,2642.9,2642.8,0.03744572]
[1729584288925,1.8823,2642.9,2642.7,0.8208]
[1729584289125,1.8823,2642.9,2642.8,0.03744572]
[1729584289426,1.8823,2642.9,2642.7,0.8208]
[1729584289594,1.8823,2642.9,2642.8,0.03744572]
[1729584289802,1.8823,2642.9,2642.7,4.60478]
[1729584290111,1.8823,2642.9,2642.8,3.82130572]
[1729584291105,1.8823,2642.9,2642.8,0.03744572]
[1729584291506,1.8823,2642.9,2642.7,0.8208]
[1729584291723,1.8823,2642.9,2642.8,0.03744572]
[1729584292106,1.8823,2642.9,2642.7,0.8208]
[1729584292307,1.8823,2642.9,2642.8,0.03744572]
[1729584292718,2.448873,2642.9,2642.6,3.78403]
[1729584292940,3.228873,2642.9,2642.8,0.03744572]
[1729584293239,2.6623,2642.9,2642.8,0.03744572]
[1729584293537,2.6623,2642.9,2642.5,3.78428]
[1729584293748,2.6623,2642.9,2642.8,0.03744572]
[1729584293909,2.6623,2642.9,2642.5,3.78428]
[1729584294105,2.6623,2642.9,2642.8,0.03744572]
[1729584294309,2.6623,2642.9,2642.5,3.78428]
[1729584294509,2.6623,2642.9,2642.8,0.03742729]
[1729584294819,2.6623,2642.9,2642.8,0.03742115]
[1729584295144,2.6623,2642.9,2642.5,3.78421]
[1729584295304,2.6623,2642.9,2642.8,0.03742115]
[1729584295504,2.6623,2642.9,2642.5,7.56842]
[1729584295505,1.8823,2642.9,2642.5,7.56842]
[1729584295737,1.8823,2642.9,2642.8,0.03742115]
[1729584295941,1.8823,2642.9,2642.7,3.784]
[1729584296123,1.8823,2642.9,2642.8,3.82128115]
[1729584296332,1.8823,2642.9,2642.8,4.61998115]
[1729584298033,0.01888104,2643.6,2643.5,3.78286]
[1729584298262,0.7565,2644.3,2643.8,3.78234]
[1729584298483,3.78147,2644.5,2644.0,0.7572]
[1729584298833,4.53779,2644.6,2644.1,0.03662472]
[1729584299231,3.78129,2644.6,2644.1,0.03662472]
[1729584299745,3.78108,2644.8,2644.1,0.03662472]
[1729584299965,3.78115,2644.7,2644.2,3.78185]
[1729584300281,3.78108,2644.8,2644.3,0.03597041]
[1729584300584,4.53738,2644.9,2644.3,3.81763041]
[1729584300730,4.53738,2644.9,2644.4,0.7572]
[1729584300934,4.53738,2644.9,2644.4,0.79314412]
[1729584301335,3.78078,2645.0,2644.5,3.78139]
[1729584301649,0.7565,2645.1,2644.6,3.81672577]
[1729584301650,3.78058,2645.1,2644.6,3.81672577]
[1729584301859,3.78058,2645.1,2644.6,0.03545577]
[1729584302149,0.77538104,2645.4,2644.6,0.03545577]
[1729584302150,3.78101,2644.8,2644.6,0.03545577]
[1729584302470,3.78101,2644.8,2644.4,0.7572]
[1729584302471,3.78101,2644.8,2644.7,0.03542949]
[1729584302876,0.7954,2644.9,2644.4,4.53868]
[1729584303029,3.78076,2645.0,2644.7,0.03542949]
[1729584303229,3.78076,2645.0,2644.5,3.85704477]
[1729584303500,3.0,2645.1,2644.6,2.98274374]
[1729584303682,3.79909104,2645.4,2644.8,3.69818797]
[1729584303851,3.78021,2645.4,2644.8,3.77380039]
[1729584304053,3.77994,2645.6,2645.0,3.78071]
[1729584304572,3.77994,2645.6,2645.1,0.03510964]
[1729584304795,3.77994,2645.6,2645.1,3.81566964]
[1729584305096,3.77994,2645.6,2645.2,0.8305]
[1729584305398,3.77973,2645.7,2645.2,0.8305]
[1729584305694,4.61234,2645.8,2645.3,0.0350571]
[1729584305854,3.77974,2645.7,2645.3,0.0350571]
[1729584306049,4.61234,2645.8,2645.3,0.0350571]
[1729584306252,7.55931,2645.8,2645.3,0.0350571]
[1729584306451,7.55935,2645.8,2645.3,0.0350571]
[1729584306903,3.77973,2645.7,2645.3,0.0350571]
[1729584307053,3.77989,2645.6,2645.3,0.0350571]
[1729584307254,3.78014,2645.4,2645.3,0.0350571]
[1729584307496,6.78014,2645.4,2645.3,0.0350571]
[1729584307653,3.78044,2645.2,2644.6,4.55637]
[1729584308162,3.78044,2645.2,2644.7,0.03490195]
[1729584308764,3.7808,2645.0,2644.7,0.03490195]
[1729584309066,4.15897,2644.9,2644.7,0.03490195]
[1729584309389,3.781,2644.8,2644.7,0.03490195]